[Event "XIV American Continental-ch 2019"]
[Site "Sao Paulo"]
[Date "2019.07.09"]
[Round "5.19"]
[White "Albuquerque Junior, Wellington S."]
[Black "Languidey, Simon Alejandro"]
[Result "0-1"]
[ECO "D55"]
[WhiteElo "2204"]
[BlackElo "2427"]
[Annotator "RC"]
[PlyCount "96"]
[EventDate "2019.07.05"]
[EventType "swiss"]
[EventCountry "BRA"]
[SourceTitle "playchess.com"]
[Source "ChessBase"]
[SourceQuality "1"]
[TimeControl "40/5400+30:1800+30"]

1. d4 {[%emt 0:00:00]} e6 {[%emt 0:09:09]} 2. Nf3 {[%emt 0:00:00]} Nf6 {[%emt 0:01:20]} 3. c4 {[%emt 0:01:17]} d5 {[%emt 0:00:32]} 4. Nc3 {[%emt 0:00:38]} Be7 {[%emt 0:01:20]} 5. Bg5 {[%emt 0:00:54]} O-O {[%emt 0:02:58]} 6. e3 {[%emt 0:00:52]} b6 {[%emt 0:00:42]} 7. cxd5 {[%emt 0:01:57]} exd5 {[%emt 0:00:15]} 8. Bd3 {[%emt 0:02:59]} Bb7 {[%emt 0:05:07]} 9. Qc2 {[%emt 0:04:05]} Nbd7 {[%emt 0:01:04]} 10. O-O {[%emt 0:05:05]} h6 {[%emt 0:01:39]} 11. Bh4 {[%emt 0:00:50]} a6 {[%emt 0:01:28]} 12. Rac1 {[%emt 0:14:58]} Re8 {[%emt 0:04:43]} 13. Ne2 {[%emt 0:09:08]} Bd6 {[%emt 0:05:42]} 14. Bh7+ {[%emt 0:03:48]} Kh8 {[%emt 0:01:08]} 15. Bf5 {[%emt 0:00:12]} c6 {[%emt 0:18:14]} 16. Bxd7 {[%emt 0:03:44]} Qxd7 {[%emt 0:00:11]} 17. Bxf6 {[%emt 0:00:09]} gxf6 {[%emt 0:00:09]} 18. Ng3 {[%emt 0:00:36]} Rg8 {[%emt 0:02:28]} 19. Qf5 {[%emt 0:02:15]} Qxf5 {[%emt 0:03:06]} 20. Nxf5 {[%emt 0:00:30]} Bf8 {[%emt 0:00:10]} 21. N3h4 {[%emt 0:08:40]} Kh7 {[%emt 0:03:04]} 22. Rc3 {[%emt 0:01:20]} a5 {[%emt 0:01:45]} 23. Rfc1 {[%emt 0:13:21]} Bb4 {[%emt 0:06:13]} 24. R3c2 {[%emt 0:00:24]} Rgc8 {[%emt 0:00:48]} 25. Nf3 {[%emt 0:02:28]} Bf8 {[%emt 0:03:10]} 26. Ne1 {[%emt 0:02:13]} c5 {[%emt 0:02:07]} 27. Nd3 {[%emt 0:01:09]} c4 {[%emt 0:01:01]} 28. Nf4 {[%emt 0:00:18]} b5 {[%emt 0:00:38]} 29. Ng3 {[%emt 0:02:49]} Ra6 {[%emt 0:06:45]} 30. Nge2 {[%emt 0:01:51]} Rd8 {[%emt 0:03:57]} 31. f3 {[%emt 0:04:46]} Bc6 {[%emt 0:04:46]} 32. Kf2 {[%emt 0:00:53]} Be7 {[%emt 0:01:40]} 33. g4 {[%emt 0:02:29]} Bf8 {[%emt 0:02:11]} 34. h3 {[%emt 0:01:52]} Bb7 {[%emt 0:01:09]} 35. Rg1 {[%emt 0:00:48]} b4 {[%emt 0:01:47]} 36. h4 {[%emt 0:00:50]} a4 {[%emt 0:00:48]} 37. g5 {[%emt 0:00:57]} fxg5 {[%emt 0:00:30]} 38. hxg5 {[%emt 0:00:07]} a3 {[%emt 0:01:12]} 39. bxa3 {[%emt 0:03:53]} Rxa3 {[%emt 0:00:38]} 40. g6+ {[%emt 0:00:26]} fxg6 {[%emt 0:01:45]} 41. Rxg6 {[%emt 0:31:37]} Rd6 {[%emt 0:32:35]} 42. Rxd6 {[%emt 0:01:31]} Bxd6 {[%emt 0:00:11]} 43. Rb2 {[%emt 0:00:00]} Bc6 {[%emt 0:00:00]} 44. Nh5 {[%emt 0:00:00]} Kg6 {[%emt 0:00:00]} 45. Nef4+ {[%emt 0:00:00]} Kf7 {[%emt 0:00:00]} 46. Re2 {[%emt 0:00:00]} c3 {[%emt 0:00:00]} 47. e4 {[%emt 0:00:00]} Bb5 {[%emt 0:00:00]} 48. Rc2 {[%emt 0:00:00]} Ba4 {[%emt 0:00:00]} 0-1

[Event "XIV American Continental-ch 2019"]
[Site "Sao Paulo"]
[Date "2019.07.09"]
[Round "5.20"]
[White "Labussiere, Victor"]
[Black "Umetsubo, Cesar Hidemitsu"]
[Result "0-1"]
[ECO "E17"]
[WhiteElo "2194"]
[BlackElo "2406"]
[Annotator "RC"]
[PlyCount "124"]
[EventDate "2019.07.05"]
[EventType "swiss"]
[EventCountry "BRA"]
[SourceTitle "playchess.com"]
[Source "ChessBase"]
[SourceQuality "1"]
[TimeControl "40/5400+30:1800+30"]

1. d4 {[%emt 0:01:09]} Nf6 {[%emt 0:00:00]} 2. c4 {[%emt 0:01:09]} e6 {[%emt 0:00:00]} 3. Nf3 {[%emt 0:00:04]} b6 {[%emt 0:01:27]} 4. g3 {[%emt 0:00:15]} Bb7 {[%emt 0:00:03]} 5. Bg2 {[%emt 0:00:21]} Be7 {[%emt 0:01:15]} 6. O-O {[%emt 0:00:04]} O-O {[%emt 0:00:15]} 7. Re1 {[%emt 0:00:38]} d6 {[%emt 0:06:19]} 8. Nc3 {[%emt 0:03:37]} Ne4 {[%emt 0:00:46]} 9. Qc2 {[%emt 0:01:57]} f5 {[%emt 0:02:46]} 10. Nd2 {[%emt 0:02:26]} d5 {[%emt 0:02:10]} 11. cxd5 {[%emt 0:03:18]} exd5 {[%emt 0:00:34]} 12. Nf3 {[%emt 0:02:34]} Nd7 {[%emt 0:10:11]} 13. Qb3 {[%emt 0:11:14]} c6 {[%emt 0:02:56]} 14. Nd2 {[%emt 0:13:10]} Bf6 {[%emt 0:09:29]} 15. e3 {[%emt 0:08:57]} Kh8 {[%emt 0:00:45]} 16. f3 {[%emt 0:02:04]} Nd6 {[%emt 0:00:55]} 17. f4 {[%emt 0:01:10]} Ne4 {[%emt 0:07:14]} 18. Nf3 {[%emt 0:08:53]} Be7 {[%emt 0:00:20]} 19. Ne2 {[%emt 0:04:32]} a5 {[%emt 0:06:33]} 20. Bd2 {[%emt 0:07:30]} Ba6 {[%emt 0:14:19]} 21. Qd1 {[%emt 0:03:15]} Rc8 {[%emt 0:08:02]} 22. Bf1 {[%emt 0:04:25]} Qe8 {[%emt 0:01:01]} 23. Nc1 {[%emt 0:02:01]} Bxf1 {[%emt 0:00:22]} 24. Rxf1 {[%emt 0:00:45]} c5 {[%emt 0:05:47]} 25. Nd3 {[%emt 0:03:40]} c4 {[%emt 0:00:13]} 26. Nde5 {[%emt 0:00:47]} Bd6 {[%emt 0:03:37]} 27. a4 {[%emt 0:06:09]} Ndf6 {[%emt 0:03:08]} 28. Bc3 {[%emt 0:01:08]} Kg8 {[%emt 0:03:11]} 29. Qe2 {[%emt 0:00:51]} Ra8 {[%emt 0:00:18]} 30. Qe1 {[%emt 0:04:21]} Bc7 {[%emt 0:00:26]} 31. Qe2 {[%emt 0:01:49]} b5 {[%emt 0:00:15]} 32. axb5 {[%emt 0:00:30]} Qxb5 {[%emt 0:00:30]} 33. Ng5 {[%emt 0:00:20]} Nxg5 {[%emt 0:00:29]} 34. fxg5 {[%emt 0:00:03]} Ne4 {[%emt 0:00:30]} 35. g4 {[%emt 0:01:06]} Bxe5 {[%emt 0:05:44]} 36. dxe5 {[%emt 0:00:01]} Nxc3 {[%emt 0:02:03]} 37. bxc3 {[%emt 0:00:03]} Qe8 {[%emt 0:00:07]} 38. gxf5 {[%emt 0:01:21]} Qxe5 {[%emt 0:00:03]} 39. Qf3 {[%emt 0:00:09]} a4 {[%emt 0:01:27]} 40. Rad1 {[%emt 0:01:22]} Rad8 {[%emt 0:00:41]} 41. Ra1 {[%emt 0:30:44]} Ra8 {[%emt 0:32:02]} 42. Rad1 {[%emt 0:00:04]} Ra5 {[%emt 0:00:00]} 43. Rd2 {[%emt 0:00:00]} a3 {[%emt 0:00:00]} 44. Rff2 {[%emt 0:00:00]} Qxc3 {[%emt 0:00:00]} 45. f6 {[%emt 0:00:00]} Qa1+ {[%emt 0:00:00]} 46. Kg2 {[%emt 0:00:00]} Qe5 {[%emt 0:00:00]} 47. h4 {[%emt 0:00:00]} c3 {[%emt 0:00:00]} 48. Rc2 {[%emt 0:00:00]} gxf6 {[%emt 0:00:00]} 49. gxf6 {[%emt 0:00:00]} Qe4 {[%emt 0:00:00]} 50. Qxe4 {[%emt 0:00:28]} dxe4 {[%emt 0:00:00]} 51. Rf1 {[%emt 0:01:36]} a2 {[%emt 0:00:00]} 52. Ra1 {[%emt 0:00:16]} Rb8 {[%emt 0:00:05]} 53. Rcc1 {[%emt 0:00:51]} Rb2+ {[%emt 0:00:34]} 54. Kf1 {[%emt 0:00:35]} c2 {[%emt 0:00:35]} 55. Ke2 {[%emt 0:00:30]} Rb1 {[%emt 0:03:06]} 56. Kd2 {[%emt 0:00:05]} Rd5+ {[%emt 0:00:14]} 57. Kc3 {[%emt 0:00:25]} Rxa1 {[%emt 0:01:38]} 58. Rxa1 {[%emt 0:00:05]} Rd1 {[%emt 0:00:07]} 59. f7+ {[%emt 0:00:27]} Kxf7 {[%emt 0:00:08]} 60. Kxc2 {[%emt 0:00:07]} Rxa1 {[%emt 0:00:07]} 61. Kb2 {[%emt 0:00:03]} Rb1+ {[%emt 0:00:27]} 62. Kxa2 {[%emt 0:00:04]} Rb8 {[%emt 0:00:05]} 0-1

[Event "XIV American Continental-ch 2019"]
[Site "Sao Paulo"]
[Date "2019.07.08"]
[Round "5.21"]
[White "Sarkar, Justin"]
[Black "Bueno, Alfeu Junior Varela"]
[Result "1-0"]
[ECO "A85"]
[WhiteElo "2389"]
[BlackElo "2169"]
[Annotator "NA RC"]
[PlyCount "89"]
[EventDate "2019.07.05"]
[EventType "swiss"]
[EventCountry "BRA"]
[SourceTitle "playchess.com"]
[Source "ChessBase"]
[SourceQuality "1"]
[TimeControl "40/5400+30:1800+30"]

1. d4 {[%emt 0:02:30]} f5 {[%emt 0:00:00]} 2. c4 {[%emt 0:00:45]} Nf6 {[%emt 0:00:20]} 3. Nc3 {[%emt 0:00:17]} g6 {[%emt 0:00:05]} 4. g3 {[%emt 0:01:18]} Bg7 {[%emt 0:00:20]} 5. Bg2 {[%emt 0:00:08]} d6 {[%emt 0:01:13]} 6. Nh3 {[%emt 0:01:36]} c6 {[%emt 0:03:02]} 7. d5 {[%emt 0:00:28]} O-O {[%emt 0:00:36]} 8. Nf4 {[%emt 0:01:02]} e5 {[%emt 0:01:53]} 9. dxe6 {[%emt 0:00:10]} Qe7 {[%emt 0:00:13]} 10. h4 {[%emt 0:08:40]} Bxe6 {[%emt 0:10:49]} 11. h5 {[%emt 0:00:19]} gxh5 {[%emt 0:05:11]} 12. Qc2 {[%emt 0:27:37]} Nbd7 {[%emt 0:18:10]} 13. b3 {[%emt 0:05:54]} Ne5 {[%emt 0:07:39]} 14. Ba3 {[%emt 0:13:18]} Rad8 {[%emt 0:22:55]} 15. O-O-O {[%emt 0:03:16]} Ng6 {[%emt 0:00:50]} 16. Nxh5 {[%emt 0:02:53]} Nxh5 {[%emt 0:00:35]} 17. Rxh5 {[%emt 0:00:02]} Rf7 {[%emt 0:06:01]} 18. f4 {[%emt 0:06:02]} Qc7 {[%emt 0:08:04]} 19. Rd3 {[%emt 0:04:05]} Qa5 {[%emt 0:02:27]} 20. Bb2 {[%emt 0:00:25]} b5 {[%emt 0:04:15]} 21. cxb5 {[%emt 0:00:52]} cxb5 {[%emt 0:00:35]} 22. Kb1 {[%emt 0:03:32]} Rc7 {[%emt 0:01:29]} 23. Qd2 {[%emt 0:00:13]} Rdc8 {[%emt 0:02:11]} 24. Bd5 {[%emt 0:03:17]} Bxd5 {[%emt 0:01:05]} 25. Nxd5 {[%emt 0:00:15]} Rc2 {[%emt 0:00:13]} 26. Qxc2 {[%emt 0:00:27]} Rxc2 {[%emt 0:00:14]} 27. Kxc2 {[%emt 0:00:06]} Qxa2 {[%emt 0:00:41]} 28. Nc3 {[%emt 0:02:12]} Qa6 {[%emt 0:00:01]} 29. Kb1 {[%emt 0:05:10]} Ne7 {[%emt 0:00:45]} 30. Nd5 {[%emt 0:02:37]} Ng6 {[%emt 0:02:12]} 31. Rxf5 {[%emt 0:00:40]} Bxb2 {[%emt 0:00:31]} 32. Kxb2 {[%emt 0:00:03]} Qc8 33. Rg5 Kh8 {[%emt 0:01:24]} 34. f5 Qd8 35. f6 {[%emt 0:02:55]} b4 {[%emt 0:00:24]} 36. Re3 {[%emt 0:00:38]} Kg8 {[%emt 0:00:32]} 37. Rf5 {[%emt 0:03:08]} Ne5 {[%emt 0:00:43]} 38. f7+ {[%emt 0:01:05]} Kf8 {[%emt 0:00:34]} 39. Nxb4 {[%emt 0:00:44]} Qb6 {[%emt 0:00:36]} 40. Re4 {[%emt 0:00:45]} Nxf7 {[%emt 0:00:27]} 41. Ref4 {[%emt 0:30:17]} Qe3 {[%emt 0:30:29]} 42. Rxf7+ {[%emt 0:00:37]} Ke8 {[%emt 0:00:35]} 43. Rf8+ {[%emt 0:00:14]} Kd7 {[%emt 0:00:12]} 44. R4f7+ {[%emt 0:00:08]} Ke6 {[%emt 0:00:11]} 45. Re8+ {[%emt 0:00:09] Kd5} 1-0

[Event "XIV American Continental-ch 2019"]
[Site "Sao Paulo"]
[Date "2019.07.08"]
[Round "5.22"]
[White "Palacio, Igor Da Paz"]
[Black "Hernandez Sanchez, Jairo Andres"]
[Result "0-1"]
[ECO "A04"]
[WhiteElo "2098"]
[BlackElo "2387"]
[Annotator "NA"]
[PlyCount "82"]
[EventDate "2019.07.05"]
[EventType "swiss"]
[EventCountry "BRA"]
[SourceTitle "playchess.com"]
[Source "ChessBase"]
[SourceQuality "1"]
[TimeControl "40/5400+30:1800+30"]

1. Nf3 {[%emt 0:00:00]} g6 {[%emt 0:00:11]} 2. g3 {[%emt 0:00:00]} Bg7 {[%emt 0:00:14]} 3. Bg2 {[%emt 0:00:00]} c5 {[%emt 0:01:33]} 4. d3 {[%emt 0:00:00]} Nc6 {[%emt 0:00:43]} 5. e4 {[%emt 0:00:12]} d6 {[%emt 0:01:03]} 6. O-O {[%emt 0:01:44]} e5 {[%emt 0:00:44]} 7. Nc3 {[%emt 0:03:57]} Nge7 {[%emt 0:00:40]} 8. Nd2 {[%emt 0:08:04]} O-O {[%emt 0:02:24]} 9. Nc4 {[%emt 0:00:34]} Be6 {[%emt 0:13:59]} 10. Ne3 {[%emt 0:06:16]} h6 {[%emt 0:04:18]} 11. Ncd5 {[%emt 0:08:00]} f5 {[%emt 0:05:49]} 12. Nxe7+ {[%emt 0:03:42]} Nxe7 {[%emt 0:00:40]} 13. exf5 {[%emt 0:00:07]} gxf5 {[%emt 0:00:13]} 14. f4 {[%emt 0:02:47]} exf4 {[%emt 0:03:24]} 15. gxf4 {[%emt 0:00:17]} d5 {[%emt 0:03:36]} 16. Kh1 {[%emt 0:03:33]} Ng6 {[%emt 0:04:27]} 17. c4 {[%emt 0:02:23]} dxc4 {[%emt 0:19:48]} 18. dxc4 {[%emt 0:00:33]} Qxd1 {[%emt 0:00:16]} 19. Rxd1 {[%emt 0:01:02]} Nxf4 {[%emt 0:00:09]} 20. Bxb7 {[%emt 0:01:29]} Rab8 {[%emt 0:00:13]} 21. Bf3 {[%emt 0:05:06]} Nh3 {[%emt 0:00:43]} 22. Kg2 {[%emt 0:03:27]} Ng5 {[%emt 0:13:21]} 23. Bd5 {[%emt 0:10:17]} f4 {[%emt 0:00:40]} 24. Bxe6+ {[%emt 0:10:29]} Nxe6 {[%emt 0:00:08]} 25. Nd5 {[%emt 0:00:17]} Bxb2 {[%emt 0:01:59]} 26. Rb1 {[%emt 0:03:04]} f3+ {[%emt 0:01:14]} 27. Kf2 {[%emt 0:00:32]} Bd4+ {[%emt 0:03:31]} 28. Be3 {[%emt 0:00:08]} Bxe3+ {[%emt 0:00:59]} 29. Kxe3 {[%emt 0:03:03]} Rbe8 {[%emt 0:00:46]} 30. Kf2 {[%emt 0:01:01]} Ng5 {[%emt 0:02:08]} 31. Nc3 {[%emt 0:04:18]} Rf4 {[%emt 0:01:02]} 32. Nd5 {[%emt 0:02:41]} Re2+ {[%emt 0:06:05]} 33. Kg3 {[%emt 0:00:54]} Rf8 {[%emt 0:01:12]} 34. Nf4 {[%emt 0:10:12]} Re4 {[%emt 0:01:12]} 35. Ng6 {[%emt 0:00:48]} Rf6 {[%emt 0:00:23]} 36. Rd7 {[%emt 0:01:11]} Nf7 {[%emt 0:03:21]} 37. Rb8+ {[%emt 0:00:57]} Kg7 {[%emt 0:00:26]} 38. Nh8 {[%emt 0:02:22]} f2 {[%emt 0:01:19]} 39. Nxf7 {[%emt 0:00:10]} Re3+ {[%emt 0:00:05]} 40. Kg4 {[%emt 0:02:42]} Rxf7 {[%emt 0:00:35]} 41. Rxf7+ {[%emt 0:30:45]} Kxf7 {[%emt 0:30:07]} 0-1

[Event "XIV American Continental-ch 2019"]
[Site "Sao Paulo"]
[Date "2019.07.08"]
[Round "5.23"]
[White "Fernandez Reyes, Lisandro"]
[Black "Carvalho, Herbert Abreu"]
[Result "1-0"]
[ECO "B13"]
[WhiteElo "2378"]
[BlackElo "2089"]
[Annotator "NA"]
[PlyCount "105"]
[EventDate "2019.07.05"]
[EventType "swiss"]
[EventCountry "BRA"]
[SourceTitle "playchess.com"]
[Source "ChessBase"]
[SourceQuality "1"]
[TimeControl "40/5400+30:1800+30"]

1. e4 {[%emt 0:02:49]} c6 {[%emt 0:04:37]} 2. d4 {[%emt 0:02:43]} d5 {[%emt 0:00:11]} 3. exd5 {[%emt 0:00:31]} cxd5 {[%emt 0:00:14]} 4. Bd3 {[%emt 0:00:28]} Nc6 {[%emt 0:01:31]} 5. c3 {[%emt 0:00:34]} g6 {[%emt 0:02:00]} 6. h3 {[%emt 0:01:10]} Bg7 {[%emt 0:08:41]} 7. Nf3 {[%emt 0:00:16]} Nf6 {[%emt 0:00:20]} 8. O-O {[%emt 0:00:26]} Bf5 {[%emt 0:05:50]} 9. Bxf5 {[%emt 0:04:06]} gxf5 {[%emt 0:00:11]} 10. Bf4 {[%emt 0:01:28]} e6 {[%emt 0:01:47]} 11. Ne1 {[%emt 0:08:22]} Ne7 {[%emt 0:07:56]} 12. Nd3 {[%emt 0:04:35]} Ng6 {[%emt 0:03:31]} 13. Bg5 {[%emt 0:07:53]} Qd6 {[%emt 0:05:00]} 14. Qa4+ {[%emt 0:03:08]} Qd7 {[%emt 0:00:36]} 15. Qxd7+ {[%emt 0:02:46]} Nxd7 {[%emt 0:03:47]} 16. Nd2 {[%emt 0:02:06]} h6 {[%emt 0:06:34]} 17. Be3 {[%emt 0:02:32]} O-O-O {[%emt 0:04:11]} 18. a4 {[%emt 0:08:08]} Bf8 {[%emt 0:05:44]} 19. c4 {[%emt 0:03:09]} Nf6 {[%emt 0:01:27]} 20. c5 {[%emt 0:00:20]} Ne4 {[%emt 0:01:20]} 21. Nf3 {[%emt 0:00:51]} f6 {[%emt 0:02:05]} 22. b4 {[%emt 0:02:26]} Be7 {[%emt 0:02:44]} 23. b5 {[%emt 0:00:29]} Ng5 {[%emt 0:01:16]} 24. Nd2 {[%emt 0:04:18]} Rdg8 {[%emt 0:03:45]} 25. Kh1 {[%emt 0:01:33]} e5 {[%emt 0:01:57]} 26. f4 {[%emt 0:07:54]} Ne4 {[%emt 0:00:34]} 27. Nxe4 {[%emt 0:02:57]} fxe4 {[%emt 0:01:18]} 28. Nb4 {[%emt 0:00:22]} Rd8 {[%emt 0:00:14]} 29. a5 {[%emt 0:02:54]} Rhg8 {[%emt 0:02:01]} 30. a6 {[%emt 0:01:19]} exf4 {[%emt 0:02:15]} 31. axb7+ {[%emt 0:00:43]} Kxb7 {[%emt 0:00:07]} 32. Nc6 {[%emt 0:00:23]} Ra8 {[%emt 0:01:14]} 33. Bxf4 {[%emt 0:00:24]} h5 {[%emt 0:01:24]} 34. Be3 {[%emt 0:01:19]} Bd8 {[%emt 0:03:13]} 35. Rf5 {[%emt 0:01:16]} Bc7 {[%emt 0:02:13]} 36. Rxh5 {[%emt 0:03:07]} a6 {[%emt 0:00:17]} 37. Na5+ {[%emt 0:03:17]} Bxa5 {[%emt 0:00:28]} 38. Rxa5 {[%emt 0:00:59]} axb5 {[%emt 0:00:07]} 39. Rxb5+ {[%emt 0:00:11]} Kc8 {[%emt 0:00:49]} 40. Rb2 {[%emt 0:04:50]} Ra1+ {[%emt 0:03:14]} 41. Kh2 {[%emt 0:30:23]} Re1 {[%emt 0:30:37]} 42. Bf2 {[%emt 0:00:46]} Rf1 {[%emt 0:00:25]} 43. Bg3 {[%emt 0:00:42]} Nf4 {[%emt 0:02:00]} 44. Rh4 {[%emt 0:00:58]} Rxg3 {[%emt 0:01:35]} 45. Kxg3 {[%emt 0:00:15]} Nd3 {[%emt 0:00:20]} 46. Ra2 {[%emt 0:00:33]} Kb7 {[%emt 0:01:06]} 47. Rh7+ {[%emt 0:01:10]} Kc6 {[%emt 0:00:20]} 48. Ra6+ {[%emt 0:02:25]} Kb5 {[%emt 0:00:11]} 49. Rb6+ {[%emt 0:00:32]} Kc4 {[%emt 0:00:13]} 50. c6 {[%emt 0:00:17]} Kxd4 {[%emt 0:00:18]} 51. c7 {[%emt 0:00:12]} Rc1 {[%emt 0:00:11]} 52. Rb8 {[%emt 0:00:32]} e3 {[%emt 0:02:42]} 53. Rh4+ {[%emt 0:00:24]} 1-0

[Event "XIV American Continental-ch 2019"]
[Site "Sao Paulo"]
[Date "2019.07.08"]
[Round "5.24"]
[White "Cordero, Daniela"]
[Black "Barbosa, Evandro Amorim"]
[Result "0-1"]
[ECO "D73"]
[WhiteElo "2076"]
[BlackElo "2506"]
[Annotator "RC"]
[PlyCount "62"]
[EventDate "2019.07.05"]
[EventType "swiss"]
[EventCountry "BRA"]
[SourceTitle "playchess.com"]
[Source "ChessBase"]
[SourceQuality "1"]
[TimeControl "40/5400+30:1800+30"]

1. d4 {[%emt 0:00:00]} Nf6 {[%emt 0:00:00]} 2. Nf3 {[%emt 0:00:00]} g6 {[%emt 0:00:00]} 3. c4 {[%emt 0:00:00]} Bg7 {[%emt 0:00:00]} 4. g3 {[%emt 0:00:00]} d5 {[%emt 0:00:01]} 5. Bg2 {[%emt 0:00:11]} dxc4 {[%emt 0:00:08]} 6. Qa4+ {[%emt 0:00:36]} Nfd7 {[%emt 0:00:09]} 7. Qxc4 {[%emt 0:03:07]} Nb6 {[%emt 0:00:55]} 8. Qc2 {[%emt 0:05:53]} Nc6 {[%emt 0:00:58]} 9. e3 {[%emt 0:00:27]} Bf5 {[%emt 0:09:59]} 10. Qb3 {[%emt 0:01:32]} Be6 {[%emt 0:02:14]} 11. Qd1 {[%emt 0:00:59]} Bc4 {[%emt 0:01:37]} 12. Na3 {[%emt 0:14:45]} Ba6 {[%emt 0:01:36]} 13. Bd2 {[%emt 0:00:28]} O-O {[%emt 0:03:14]} 14. b4 {[%emt 0:02:17]} Bd3 {[%emt 0:03:05]} 15. Qb3 {[%emt 0:00:53]} Be4 {[%emt 0:01:26]} 16. b5 {[%emt 0:05:34]} Nb8 {[%emt 0:00:21]} 17. O-O {[%emt 0:01:49]} N8d7 {[%emt 0:02:01]} 18. Rfd1 {[%emt 0:11:07]} a6 {[%emt 0:03:05]} 19. Ne1 {[%emt 0:06:37]} Bxg2 {[%emt 0:01:03]} 20. Kxg2 {[%emt 0:00:28]} axb5 {[%emt 0:05:36]} 21. Nxb5 {[%emt 0:00:07]} c6 {[%emt 0:00:37]} 22. Nc3 {[%emt 0:00:50]} e5 {[%emt 0:00:10]} 23. a4 {[%emt 0:08:16]} exd4 {[%emt 0:02:45]} 24. exd4 {[%emt 0:00:06]} Nf6 {[%emt 0:05:53]} 25. a5 {[%emt 0:04:34]} Nbd5 {[%emt 0:00:06]} 26. Qxb7 {[%emt 0:05:04]} Nxc3 {[%emt 0:00:54]} 27. Bxc3 {[%emt 0:00:08]} Qd5+ {[%emt 0:00:04]} 28. Kg1 {[%emt 0:04:16]} Rfb8 {[%emt 0:02:22]} 29. Qe7 {[%emt 0:05:56]} Ne4 {[%emt 0:02:20]} 30. Bd2 {[%emt 0:01:00]} Re8 {[%emt 0:09:49]} 31. Qc7 {[%emt 0:02:48]} Nxf2 {[%emt 0:00:36]} 0-1

[Event "XIV American Continental-ch 2019"]
[Site "Sao Paulo"]
[Date "2019.07.09"]
[Round "6.1"]
[White "Pichot, Alan"]
[Black "Supi, Luis Paulo"]
[Result "1/2-1/2"]
[ECO "C88"]
[WhiteElo "2579"]
[BlackElo "2562"]
[Annotator "ChessBase"]
[PlyCount "58"]
[EventDate "2019.07.05"]
[EventType "swiss"]
[EventCountry "BRA"]
[SourceTitle "playchess.com"]
[Source "ChessBase"]
[SourceQuality "1"]
[TimeControl "40/5400+30:1800+30"]

1. e4 {[%emt 0:00:00]} e5 {[%emt 0:00:09]} 2. Nf3 {[%emt 0:00:22]} Nc6 {[%emt 0:00:05]} 3. Bb5 {[%emt 0:00:49]} a6 {[%emt 0:00:19]} 4. Ba4 {[%emt 0:00:06]} Nf6 {[%emt 0:00:04]} 5. O-O {[%emt 0:00:30]} Be7 {[%emt 0:00:22]} 6. Re1 {[%emt 0:00:35]} b5 {[%emt 0:00:11]} 7. Bb3 {[%emt 0:00:05]} d6 {[%emt 0:00:58]} 8. a4 {[%emt 0:03:44]} Bg4 {[%emt 0:05:07]} 9. c3 {[%emt 0:00:56]} O-O {[%emt 0:03:39]} 10. h3 {[%emt 0:00:22]} Bxf3 {[%emt 0:02:31]} 11. Qxf3 {[%emt 0:00:07]} Na5 {[%emt 0:00:38]} 12. Bc2 {[%emt 0:00:21]} c5 {[%emt 0:00:16]} 13. d3 {[%emt 0:02:23]} b4 {[%emt 0:00:45]} 14. Nd2 {[%emt 0:03:15]} Rb8 {[%emt 0:00:11]} 15. Qd1 {[%emt 0:01:40]} d5 {[%emt 0:05:04]} 16. d4 {[%emt 0:24:26]} bxc3 {[%emt 0:08:25]} 17. bxc3 {[%emt 0:00:25]} cxd4 {[%emt 0:00:44]} 18. cxd4 {[%emt 0:01:05]} Nc6 {[%emt 0:10:35]} 19. dxe5 {[%emt 0:26:58]} Nxe5 {[%emt 0:00:50]} 20. exd5 {[%emt 0:01:48]} Qxd5 {[%emt 0:00:39]} 21. Nf1 {[%emt 0:00:19]} Qa5 {[%emt 0:12:48]} 22. Bf4 {[%emt 0:02:34]} Rbd8 {[%emt 0:02:04]} 23. Qc1 {[%emt 0:00:36]} Bd6 {[%emt 0:04:04]} 24. Bd2 {[%emt 0:05:12]} Qc7 {[%emt 0:05:15]} 25. Bg5 {[%emt 0:00:27]} Ng6 {[%emt 0:02:32]} 26. Bxg6 {[%emt 0:05:22]} hxg6 {[%emt 0:01:05]} 27. Qxc7 {[%emt 0:00:15]} Bxc7 {[%emt 0:00:04]} 28. Rac1 {[%emt 0:00:11]} Rc8 {[%emt 0:03:41]} 29. g3 {[%emt 0:02:03]} Ba5 {[%emt 0:01:08]} 1/2-1/2

[Event "XIV American Continental-ch 2019"]
[Site "Sao Paulo"]
[Date "2019.07.09"]
[Round "6.3"]
[White "Perez Ponsa, Federico"]
[Black "Fier, Alexandr"]
[Result "1/2-1/2"]
[ECO "B48"]
[WhiteElo "2560"]
[BlackElo "2547"]
[Annotator "ChessBase"]
[PlyCount "47"]
[EventDate "2019.07.05"]
[EventType "swiss"]
[EventCountry "BRA"]
[SourceTitle "playchess.com"]
[Source "ChessBase"]
[SourceQuality "1"]
[TimeControl "40/5400+30:1800+30"]

1. e4 {[%emt 0:00:00]} c5 {[%emt 0:00:00]} 2. Nf3 {[%emt 0:00:00]} e6 {[%emt 0:00:00]} 3. d4 {[%emt 0:00:00]} cxd4 {[%emt 0:00:00]} 4. Nxd4 {[%emt 0:00:00]} Nc6 {[%emt 0:00:00]} 5. Nc3 {[%emt 0:00:00]} Qc7 {[%emt 0:00:01]} 6. Be3 {[%emt 0:00:20]} a6 {[%emt 0:00:05]} 7. Qd2 {[%emt 0:00:39]} Nf6 {[%emt 0:00:05]} 8. f4 {[%emt 0:00:05]} Bb4 {[%emt 0:00:30]} 9. Bd3 {[%emt 0:00:41]} b5 {[%emt 0:01:24]} 10. a3 {[%emt 0:00:29]} Be7 {[%emt 0:00:09]} 11. e5 {[%emt 0:04:14]} Ng4 {[%emt 0:00:04]} 12. Nxc6 {[%emt 0:00:09]} dxc6 {[%emt 0:00:16]} 13. Ne4 {[%emt 0:05:36]} Nxe3 {[%emt 0:00:05]} 14. Qxe3 {[%emt 0:00:03]} Bb7 {[%emt 0:00:14]} 15. O-O-O {[%emt 0:00:15]} O-O-O {[%emt 0:05:40]} 16. Ng5 {[%emt 0:02:59]} Bxg5 {[%emt 0:04:42]} 17. fxg5 {[%emt 0:00:04]} Rd5 {[%emt 0:03:28]} 18. Rhf1 {[%emt 0:02:10]} Rxe5 {[%emt 0:04:03]} 19. Qg3 {[%emt 0:00:26]} Rf8 {[%emt 0:04:50]} 20. Bxh7 {[%emt 0:01:56]} Rd5 {[%emt 0:01:19]} 21. Qxc7+ {[%emt 0:18:17]} Kxc7 {[%emt 0:00:05]} 22. h4 {[%emt 0:00:02]} Rxd1+ {[%emt 0:01:54]} 23. Kxd1 {[%emt 0:00:10]} c5 {[%emt 0:00:02]} 24. g3 {[%emt 0:12:18]} 1/2-1/2